Workbook

Sheet 2017년
A2: 월별 에너지 사용 실적(2017년)
O3: 서울특별시 보라매병원
A4: 구 분 | B4: 상하수도 요금 | H4: 도시가스 요금 | N4: 전기요금 | T4: 합 계
B5: 병 원 | D5: 임대매장 | F5: 합계 | H5: 병 원 | J5: 임대매장 | L5: 합계 | N5: 병 원 | P5: 임대매장 | R5: 합계 | T5: 병 원 | V5: 임대매장 | X5: 합계
B6: 사용량(㎥) | C6: 금 액 | D6: 사용량(㎥) | E6: 금 액 | F6: 사용량(㎥) | G6: 금 액 | H6: 사용량(㎥) | I6: 금 액 | J6: 사용량(㎥) | K6: 금 액 | L6: 사용량(㎥) | M6: 금 액 | N6: 사용량 (KWh) | O6: 금 액 | P6: 사용량(KWh) | Q6: 금 액 | R6: 사용량(KWh) | S6: 금 액 | T6: 금액 | V6: 금액 | X6: 금액
A7: 1월 | B7: 23230 | C7: 48305260 | D7: 437 | E7: 1106430 | F7: =+B7+D7 -> 23667 | G7: =C7+E7 -> 49411690 | H7: 200268.892 | I7: 141558590 | J7: 2776.108 | K7: 2007100 | L7: =+H7+J7 -> 203045 | M7: =I7+K7 -> 143565690 | N7: 1835187 | O7: 244601330 | P7: 30453 | Q7: 4590120 | R7: =+N7+P7 -> 1865640 | S7: =O7+Q7 -> 249191450 | T7: =SUM(C7,I7,O7) -> 434465180 | V7: =SUM(E7,K7,Q7) -> 7703650 | X7: =SUM(T7,V7) -> 442168830
A8: 2월 | B8: 21118 | C8: 44603880 | D8: 444 | E8: 1118120 | F8: 21562 | G8: 45722000 | H8: 176535.056 | I8: 124549590 | J8: 2479.944 | K8: 1788020 | L8: 179015 | M8: 126337610 | N8: 1574981 | O8: 205159450 | P8: 29176 | Q8: 4271420 | R8: 1604157 | S8: 209430870 | T8: =SUM(C8,I8,O8) -> 374312920 | V8: =SUM(E8,K8,Q8) -> 7177560 | X8: =SUM(T8,V8) -> 381490480
A9: 3월 | B9: 18293 | C9: 37184240 | D9: 1275 | E9: 4261060 | F9: 19568 | G9: 41445300 | H9: 137796.577 | I9: 100785280 | J9: 4397.423 | K9: 3276210 | L9: 142194 | M9: 104061490 | N9: 1572447 | O9: 176109210 | P9: 32333 | Q9: 4183980 | R9: 1604780 | S9: 180293190 | T9: 314078730 | V9: 11721250 | X9: 325799980
A10: 4월 | B10: 17410 | C10: 35706310 | D10: 1515 | E10: 4439090 | F10: =+B10+D10 -> 18925 | G10: =C10+E10 -> 40145400 | H10: 91980 | I10: 61721900 | J10: 3729 | K10: 2562280 | L10: =+H10+J10 -> 95709 | M10: =I10+K10 -> 64284180 | N10: 1549758 | O10: 172857430 | P10: 35096 | Q10: 4266440 | R10: =+N10+P10 -> 1584854 | S10: =O10+Q10 -> 177123870 | T10: 270285640 | V10: 11267810 | X10: 281553450
A11: 5월 | B11: 21185 | C11: 44407010 | D11: 1478 | E11: 3764390 | F11: =+B11+D11 -> 22663 | G11: 48171400 | H11: 101137.9864 | I11: 47810930 | J11: 4853.01356 | K11: 2530520 | L11: 105991 | M11: 50341450 | N11: 1924870 | O11: 226456730 | P11: 39558 | Q11: 5113160 | R11: 1964428 | S11: 231569890 | T11: 318674670 | V11: 11408070 | X11: 330082740
A12: 6월 | B12: 22753 | C12: 47700390 | D12: 1617 | E12: 3973210 | F12: 24370 | G12: 51673600 | H12: 140208.137 | I12: 62749250 | J12: 5370.863 | K12: 2679140 | L12: 145579 | M12: 65428390 | N12: 2173354 | O12: 295367040 | P12: 44178 | Q12: 6682700 | R12: 2217532 | S12: 302049740 | T12: 405816680 | V12: 13335050 | X12: 419151730
A13: 7월 | B13: 28367 | C13: 59816870 | D13: 1719 | E13: 4048430 | F13: =+B13+D13 -> 30086 | G13: =C13+E13 -> 63865300 | H13: 196349.1702 | I13: 86418410 | J13: 7939.8298 | K13: 3821270 | L13: =+H13+J13 -> 204289 | M13: =I13+K13 -> 90239680 | N13: 2629964 | O13: 350962200 | P13: 47680 | Q13: 7365830 | R13: =+N13+P13 -> 2677644 | S13: =O13+Q13 -> 358328030 | T13: 497197480 | V13: 15235530 | X13: 512433010
A14: 8월 | B14: 28443 | C14: 60184120 | D14: 1827 | E14: 4265580 | F14: 30270 | G14: 64449700 | H14: 197544.4731 | I14: 87118740 | J14: 7383.52692 | K14: 3601370 | L14: 204928 | M14: 90720110 | N14: 2318166 | O14: 292587510 | P14: 44442 | Q14: 6477160 | R14: 2362608 | S14: 299064670 | T14: 439890370 | V14: 14344110 | X14: 454234480
A15: 9월 | B15: 28255 | C15: 59929750 | D15: 1655 | E15: 3990550 | F15: =+B15+D15 -> 29910 | G15: =C15+E15 -> 63920300 | H15: 138869.3485 | I15: 63535210 | J15: 4857.65152 | K15: 2561910 | L15: =+H15+J15 -> 143727 | M15: =I15+K15 -> 66097120 | N15: 1886685 | O15: 198487890 | P15: 35801 | Q15: 4185240 | R15: =+N15+P15 -> 1922486 | S15: =O15+Q15 -> 202673130 | T15: 321952850 | V15: 10737700 | X15: 332690550
A16: 10월 | B16: 20331 | C16: 42244530 | D16: 1451 | E16: 4083370 | F16: =+B16+D16 -> 21782 | G16: =C16+E16 -> 46327900 | H16: 96118.373 | I16: 68964240 | J16: 3787.627 | K16: 2779630 | L16: =+H16+J16 -> 99906 | M16: =I16+K16 -> 71743870 | N16: 1680014 | O16: 204700150 | P16: 37267 | Q16: 4926360 | R16: =+N16+P16 -> 1717281 | S16: =O16+Q16 -> 209626510 | T16: 315908920 | V16: 11789360 | X16: 327698280
A17: 11월 | F17: =+B17+D17 -> 0 | G17: =C17+E17 -> 0 | L17: =+H17+J17 -> 0 | M17: =I17+K17 -> 0 | R17: =+N17+P17 -> 0 | S17: =O17+Q17 -> 0 | T17: 0 | V17: 0 | X17: 0
A18: 12월 | F18: =+B18+D18 -> 0 | G18: =C18+E18 -> 0 | L18: =+H18+J18 -> 0 | M18: =I18+K18 -> 0 | R18: =+N18+P18 -> 0 | S18: =O18+Q18 -> 0 | T18: 0 | V18: 0 | X18: 0
A19: 합계 | B19: =SUM(B7:B18) -> 229385 | C19: 480082360 | D19: 13418 | E19: 35050230 | F19: =SUM(F7:F18) -> 242803 | G19: =SUM(G7:G18) -> 515132590 | H19: 1476808.013 | I19: 845212140 | J19: 47574.9868 | K19: 27607450 | L19: =SUM(L7:L18) -> 1524383 | M19: =SUM(M7:M18) -> 872819590 | N19: 19145426 | O19: 2367288940 | P19: 375984 | Q19: 52062410 | R19: =SUM(R7:R18) -> 19521410 | S19: =SUM(S7:S18) -> 2419351350 | T19: =SUM(T7:U18) -> 3692583440 | V19: =SUM(V7:W18) -> 114720090 | X19: =SUM(X7:Y18) -> 3807303530
